[Event "DVM U10 2024"]
[Site "Duesseldorf"]
[Date "2024.12.27"]
[Round "3"]
[White "Benischke, Moritz"]
[Black "Brucker, Oscar"]
[Result "0-1"]
[ECO "D07"]
[WhiteElo "1421"]
[BlackElo "1291"]
[Annotator "NA RC"]
[PlyCount "140"]
[EventDate "2024.12.23"]
[EventType "team-tourn"]
[EventRounds "7"]
[EventCountry "GER"]
[SourceTitle "playchess.com"]
[Source "ChessBase"]
[SourceQuality "1"]
[TimeControl "3300+5"]

1. d4 {[%emt 0:00:01]} d5 {[%emt 0:00:05]} 2. c4 {[%emt 0:00:10]} dxc4 {[%emt 0:00:05]} 3. e4 {[%emt 0:00:05]} Nc6 {[%emt 0:00:57]} 4. Nf3 {[%emt 0:00:12]} Bg4 {[%emt 0:00:21]} 5. Be3 {[%emt 0:00:26]} e6 {[%emt 0:00:35]} 6. Bxc4 {[%emt 0:00:10]} Nf6 {[%emt 0:00:20]} 7. Nc3 {[%emt 0:00:46]} Bb4 {[%emt 0:00:24]} 8. h3 {[%emt 0:00:49]} Bh5 {[%emt 0:00:23]} 9. O-O {[%emt 0:01:40]} Bxc3 {[%emt 0:00:22]} 10. bxc3 {[%emt 0:00:28]} Nxe4 {[%emt 0:00:06]} 11. Rc1 {[%emt 0:01:26]} O-O {[%emt 0:01:12]} 12. Bd3 {[%emt 0:00:26]} Nf6 {[%emt 0:01:08]} 13. Bg5 {[%emt 0:00:30]} h6 {[%emt 0:00:19]} 14. Bh4 {[%emt 0:00:21]} e5 {[%emt 0:01:44]} 15. dxe5 {[%emt 0:01:20]} Nxe5 {[%emt 0:00:09]} 16. Be2 {[%emt 0:00:53]} Qxd1 {[%emt 0:00:32]} 17. Rcxd1 {[%emt 0:00:18]} Ng6 {[%emt 0:00:56]} 18. Bxf6 {[%emt 0:00:27]} gxf6 {[%emt 0:00:06]} 19. g4 {[%emt 0:00:08]} Nf4 {[%emt 0:00:28]} 20. Bc4 {[%emt 0:00:34]} Nxh3+ {[%emt 0:00:15]} 21. Kg2 {[%emt 0:00:16]} Bxg4 {[%emt 0:00:13]} 22. Kg3 {[%emt 0:00:34]} Bxf3 {[%emt 0:00:53]} 23. Kxf3 {[%emt 0:00:21]} Ng5+ {[%emt 0:00:05]} 24. Ke2 {[%emt 0:01:10]} Rad8 {[%emt 0:00:16]} 25. Rxd8 {[%emt 0:00:25]} Rxd8 {[%emt 0:00:06]} 26. Rb1 {[%emt 0:00:27]} b6 {[%emt 0:00:35]} 27. Rg1 {[%emt 0:02:01]} Kh7 {[%emt 0:00:56]} 28. f4 {[%emt 0:00:18]} Ne4 {[%emt 0:00:10]} 29. Bxf7 {[%emt 0:00:48]} Nxc3+ {[%emt 0:00:36]} 30. Ke3 {[%emt 0:00:17]} Nd5+ {[%emt 0:01:26]} 31. Kf3 {[%emt 0:00:31]} Nc3 {[%emt 0:00:52]} 32. Rc1 {[%emt 0:00:45]} Rf8 {[%emt 0:00:21]} 33. Bb3 {[%emt 0:00:23]} Nb5 {[%emt 0:00:28]} 34. Kf2 {[%emt 0:01:16]} c5 {[%emt 0:00:48]} 35. Rb1 {[%emt 0:00:55]} Nc3 {[%emt 0:01:15]} 36. Bc2+ {[%emt 0:00:37]} Kh8 {[%emt 0:00:41]} 37. Rh1 {[%emt 0:00:22]} Kg7 {[%emt 0:00:38]} 38. Rg1+ {[%emt 0:00:16]} Kf7 {[%emt 0:00:21]} 39. Bb3+ {[%emt 0:00:43]} Ke7 {[%emt 0:00:39]} 40. Rg7+ {[%emt 0:00:22]} Kd6 {[%emt 0:01:08]} 41. Rxa7 {[%emt 0:00:24]} Ne4+ {[%emt 0:00:10]} 42. Ke1 {[%emt 0:00:33]} Rh8 {[%emt 0:00:21]} 43. Ra6 {[%emt 0:00:39]} Kc6 {[%emt 0:00:38]} 44. Bd1 {[%emt 0:01:13]} h5 {[%emt 0:00:29]} 45. Bf3 {[%emt 0:00:12]} f5 {[%emt 0:00:16]} 46. Ra3 {[%emt 0:00:46]} Kc7 {[%emt 0:01:17]} 47. Bxe4 {[%emt 0:00:38]} fxe4 {[%emt 0:00:10]} 48. Kf1 {[%emt 0:00:14]} h4 {[%emt 0:00:14]} 49. Kg1 {[%emt 0:00:16]} Kc6 {[%emt 0:00:13]} 50. f5 {[%emt 0:00:16]} Kd5 {[%emt 0:00:19]} 51. f6 {[%emt 0:00:19]} Ke6 {[%emt 0:00:15]} 52. Ra6 {[%emt 0:00:24]} Rb8 {[%emt 0:00:26]} 53. Kg2 {[%emt 0:00:12]} Kxf6 {[%emt 0:00:14]} 54. Kh3 {[%emt 0:00:12]} Kg5 {[%emt 0:00:19]} 55. Ra4 {[%emt 0:00:13]} Re8 {[%emt 0:00:21]} 56. Ra6 {[%emt 0:00:28]} e3 {[%emt 0:00:37]} 57. Rxb6 {[%emt 0:00:37]} e2 {[%emt 0:00:01]} 58. Rb1 {[%emt 0:00:35]} e1=Q {[%emt 0:01:20]} 59. Rxe1 {[%emt 0:00:17]} Rxe1 {[%emt 0:00:07]} 60. a4 {[%emt 0:00:18]} Ra1 {[%emt 0:00:07]} 61. a5 {[%emt 0:00:50]} Rxa5 {[%emt 0:00:14]} 62. Kg2 {[%emt 0:00:16]} c4 {[%emt 0:00:09]} 63. Kf2 {[%emt 0:00:15]} c3 {[%emt 0:00:09]} 64. Ke2 {[%emt 0:00:02]} h3 {[%emt 0:00:09]} 65. Kf2 {[%emt 0:00:19]} c2 {[%emt 0:00:03]} 66. Kg3 {[%emt 0:00:18]} c1=Q {[%emt 0:00:19]} 67. Kxh3 {[%emt 0:00:18]} Ra4 {[%emt 0:00:29]} 68. Kg3 {[%emt 0:00:13]} Qc3+ {[%emt 0:00:46]} 69. Kf2 {[%emt 0:00:55]} Ra2+ {[%emt 0:00:00]} 70. Kf1 {[%emt 0:00:24]} Qc1# {[%emt 0:00:00]} 0-1

[Event "DVM U10 2024"]
[Site "Duesseldorf"]
[Date "2024.12.27"]
[Round "3"]
[White "Wittenberger, Henri"]
[Black "Liu, Jonas"]
[Result "0-1"]
[ECO "B31"]
[WhiteElo "1421"]
[BlackElo "1690"]
[Annotator "NA RC"]
[PlyCount "126"]
[EventDate "2024.12.23"]
[EventType "team-tourn"]
[EventRounds "7"]
[EventCountry "GER"]
[SourceTitle "playchess.com"]
[Source "ChessBase"]
[SourceQuality "1"]
[TimeControl "3300+5"]

1. e4 {[%emt 0:00:10]} c5 {[%emt 0:00:10]} 2. Nf3 {[%emt 0:00:10]} Nc6 {[%emt 0:00:11]} 3. d4 {[%emt 0:00:09]} cxd4 {[%emt 0:00:15]} 4. Nxd4 {[%emt 0:00:14]} g6 {[%emt 0:00:36]} 5. Bb5 {[%emt 0:01:19]} Bg7 {[%emt 0:00:37]} 6. Bxc6 {[%emt 0:01:05]} bxc6 {[%emt 0:01:03]} 7. Nc3 {[%emt 0:02:04]} d5 {[%emt 0:01:01]} 8. Nxc6 {[%emt 0:01:20]} Bxc3+ {[%emt 0:03:20]} 9. bxc3 {[%emt 0:00:24]} Qc7 {[%emt 0:00:31]} 10. exd5 {[%emt 0:02:15]} Bb7 {[%emt 0:00:05]} 11. Nb4 {[%emt 0:03:31]} a5 {[%emt 0:01:28]} 12. Nd3 {[%emt 0:05:13]} Bxd5 {[%emt 0:01:04]} 13. O-O {[%emt 0:01:43]} Nf6 {[%emt 0:01:00]} 14. Bb2 {[%emt 0:04:35]} O-O {[%emt 0:02:07]} 15. a3 {[%emt 0:06:14]} Rab8 {[%emt 0:01:29]} 16. Re1 {[%emt 0:02:10]} Qc6 {[%emt 0:02:26]} 17. g3 {[%emt 0:02:59]} Bf3 {[%emt 0:01:18]} 18. Ne5 {[%emt 0:01:35]} Qb7 {[%emt 0:03:46]} 19. Nxf3 {[%emt 0:00:29]} Qxb2 {[%emt 0:01:06]} 20. Qd3 {[%emt 0:05:10]} Rfc8 {[%emt 0:01:13]} 21. Reb1 {[%emt 0:01:59]} Qxc3 {[%emt 0:01:39]} 22. Qxc3 {[%emt 0:00:45]} Rxb1+ {[%emt 0:00:05]} 23. Rxb1 {[%emt 0:00:33]} Rxc3 {[%emt 0:00:05]} 24. Rb5 {[%emt 0:00:59]} Rxf3 {[%emt 0:00:17]} 25. Rxa5 {[%emt 0:00:16]} Rc3 {[%emt 0:00:25]} 26. Ra8+ {[%emt 0:00:39]} Kg7 {[%emt 0:00:06]} 27. a4 {[%emt 0:00:06]} Rxc2 {[%emt 0:00:11]} 28. Kf1 {[%emt 0:00:48]} Nd5 {[%emt 0:00:39]} 29. a5 {[%emt 0:00:51]} Ra2 {[%emt 0:00:14]} 30. h4 {[%emt 0:00:32]} h5 {[%emt 0:00:49]} 31. Ke1 {[%emt 0:01:26]} Kf6 {[%emt 0:01:18]} 32. f4 {[%emt 0:01:02]} e6 {[%emt 0:01:11]} 33. a6 {[%emt 0:00:19]} Nc7 {[%emt 0:00:11]} 34. Ra7 {[%emt 0:00:10]} Nxa6 {[%emt 0:00:21]} 35. Kd1 {[%emt 0:00:18]} Nb4 {[%emt 0:00:27]} 36. Rb7 {[%emt 0:00:05]} Nd5 {[%emt 0:00:20]} 37. Rb3 {[%emt 0:00:23]} Kf5 {[%emt 0:00:27]} 38. Ke1 {[%emt 0:00:11]} Rh2 {[%emt 0:00:13]} 39. Ra3 {[%emt 0:00:21]} Nxf4 {[%emt 0:00:10]} 40. gxf4 {[%emt 0:00:13]} Rxh4 {[%emt 0:00:20]} 41. Ra7 {[%emt 0:00:15]} f6 {[%emt 0:00:15]} 42. Ra4 {[%emt 0:00:01]} Rxf4 {[%emt 0:00:14]} 43. Ra5+ {[%emt 0:00:03]} e5 {[%emt 0:00:06]} 44. Ra6 {[%emt 0:00:03]} h4 {[%emt 0:00:09]} 45. Ra8 {[%emt 0:00:05]} h3 {[%emt 0:00:06]} 46. Rh8 {[%emt 0:00:02]} Kg4 {[%emt 0:00:07]} 47. Ke2 {[%emt 0:00:01]} Kg3 {[%emt 0:00:10]} 48. Rh6 {[%emt 0:00:06]} g5 {[%emt 0:00:07]} 49. Ke3 {[%emt 0:00:06]} g4 {[%emt 0:00:19]} 50. Ke2 {[%emt 0:00:07]} h2 {[%emt 0:00:10]} 51. Ke3 {[%emt 0:00:10]} Rf1 {[%emt 0:00:19]} 52. Ke2 {[%emt 0:00:08]} h1=Q {[%emt 0:00:22]} 53. Rxh1 {[%emt 0:00:03]} Rxh1 {[%emt 0:00:12]} 54. Ke3 {[%emt 0:00:01]} f5 {[%emt 0:00:12]} 55. Kd3 {[%emt 0:00:01]} f4 {[%emt 0:00:10]} 56. Ke4 {[%emt 0:00:01]} f3 {[%emt 0:00:05]} 57. Kxe5 {[%emt 0:00:05]} f2 {[%emt 0:00:05]} 58. Kd6 {[%emt 0:00:00]} f1=Q {[%emt 0:00:31]} 59. Kd7 {[%emt 0:00:00]} Qe2 {[%emt 0:00:13]} 60. Kd6 {[%emt 0:00:01]} Rd1+ {[%emt 0:00:18]} 61. Kc5 {[%emt 0:00:01]} Qc2+ {[%emt 0:00:36]} 62. Kb4 {[%emt 0:00:02]} Rb1+ {[%emt 0:00:08]} 63. Ka3 {[%emt 0:00:05]} Qb3# {[%emt 0:00:05]} 0-1

[Event "DVM U10 2024"]
[Site "Duesseldorf"]
[Date "2024.12.27"]
[Round "3"]
[White "Lüttgen, Jona"]
[Black "Ahmadov, Ahmad"]
[Result "0-1"]
[ECO "C54"]
[WhiteElo "1412"]
[BlackElo "1663"]
[Annotator "NA RC"]
[PlyCount "92"]
[EventDate "2024.12.23"]
[EventType "team-tourn"]
[EventRounds "7"]
[EventCountry "GER"]
[SourceTitle "playchess.com"]
[Source "ChessBase"]
[SourceQuality "1"]
[TimeControl "3300+5"]

1. e4 {[%emt 0:00:02]} e5 {[%emt 0:00:06]} 2. Nf3 {[%emt 0:00:03]} Nc6 {[%emt 0:00:11]} 3. Bc4 {[%emt 0:00:06]} Bc5 {[%emt 0:00:06]} 4. c3 {[%emt 0:00:05]} Nf6 {[%emt 0:00:09]} 5. d4 {[%emt 0:00:08]} exd4 {[%emt 0:00:10]} 6. e5 {[%emt 0:00:03]} Ng8 {[%emt 0:05:24]} 7. cxd4 {[%emt 0:01:06]} Bb4+ {[%emt 0:00:13]} 8. Bd2 {[%emt 0:00:16]} Bxd2+ {[%emt 0:00:12]} 9. Qxd2 {[%emt 0:00:17]} d5 {[%emt 0:02:21]} 10. exd6 {[%emt 0:00:15]} Qxd6 {[%emt 0:01:55]} 11. O-O {[%emt 0:00:51]} Nge7 {[%emt 0:01:07]} 12. Nc3 {[%emt 0:00:55]} O-O {[%emt 0:00:29]} 13. Ne4 {[%emt 0:01:06]} Qg6 {[%emt 0:00:51]} 14. Ng3 {[%emt 0:01:50]} Nf5 {[%emt 0:01:58]} 15. Bd3 {[%emt 0:00:44]} Qf6 {[%emt 0:00:22]} 16. Nh5 {[%emt 0:02:23]} Qd8 {[%emt 0:03:20]} 17. Rad1 {[%emt 0:02:51]} g6 {[%emt 0:03:43]} 18. Nf4 {[%emt 0:02:22]} Ncxd4 {[%emt 0:00:52]} 19. Ne1 {[%emt 0:01:47]} Ne6 {[%emt 0:02:12]} 20. g4 {[%emt 0:01:49]} Qg5 {[%emt 0:01:13]} 21. Neg2 {[%emt 0:03:40]} Qxg4 {[%emt 0:00:37]} 22. Nd5 {[%emt 0:03:50]} Kh8 {[%emt 0:03:46]} 23. f4 {[%emt 0:05:38]} Ned4 {[%emt 0:01:54]} 24. Bxf5 {[%emt 0:01:27]} Nxf5 {[%emt 0:01:47]} 25. Nf6 {[%emt 0:02:40]} Qh3 {[%emt 0:01:48]} 26. Qb4 {[%emt 0:01:13]} Kg7 {[%emt 0:01:04]} 27. Rfe1 {[%emt 0:02:44]} Be6 {[%emt 0:01:22]} 28. Ne4 {[%emt 0:01:38]} Bxa2 {[%emt 0:02:38]} 29. Qxb7 {[%emt 0:01:32]} Qb3 {[%emt 0:02:12]} 30. Qxc7 {[%emt 0:00:36]} Qxb2 {[%emt 0:00:23]} 31. Rd2 {[%emt 0:00:40]} Qb6+ {[%emt 0:00:15]} 32. Qxb6 {[%emt 0:01:02]} axb6 {[%emt 0:00:01]} 33. Ng5 {[%emt 0:00:53]} Bc4 {[%emt 0:00:33]} 34. Rd7 {[%emt 0:01:10]} h6 {[%emt 0:01:14]} 35. Ne4 {[%emt 0:00:53]} b5 {[%emt 0:00:25]} 36. Nc5 {[%emt 0:00:50]} Rfd8 {[%emt 0:00:24]} 37. Rb7 {[%emt 0:00:42]} Rd2 {[%emt 0:00:26]} 38. Ne4 {[%emt 0:00:58]} Rdd8 {[%emt 0:00:46]} 39. Nc5 {[%emt 0:00:35]} Nd4 {[%emt 0:00:11]} 40. Re4 {[%emt 0:00:56]} Ra1+ {[%emt 0:00:22]} 41. Kf2 {[%emt 0:00:42]} Rf1+ {[%emt 0:00:30]} 42. Kg3 {[%emt 0:00:38]} Nf5+ {[%emt 0:00:47]} 43. Kh3 {[%emt 0:00:43]} h5 {[%emt 0:00:42]} 44. Nh4 {[%emt 0:00:48]} Rf3+ {[%emt 0:01:01]} 45. Kg2 {[%emt 0:00:41]} Nxh4+ {[%emt 0:00:16]} 46. Kg1 {[%emt 0:00:05]} Rf1# {[%emt 0:00:05]} 0-1

[Event "DVM U10 2024"]
[Site "Duesseldorf"]
[Date "2024.12.27"]
[Round "3"]
[White "Fabritius, Wolf"]
[Black "von Flottwell, Lionel"]
[Result "1/2-1/2"]
[ECO "D30"]
[WhiteElo "1405"]
[BlackElo "1597"]
[Annotator "NA RC"]
[PlyCount "85"]
[EventDate "2024.12.23"]
[EventType "team-tourn"]
[EventRounds "7"]
[EventCountry "GER"]
[SourceTitle "playchess.com"]
[Source "ChessBase"]
[SourceQuality "1"]
[TimeControl "3300+5"]

1. d4 {[%emt 0:00:02]} d5 {[%emt 0:00:09]} 2. Nf3 {[%emt 0:00:04]} Nf6 {[%emt 0:00:19]} 3. c4 {[%emt 0:00:07]} e6 {[%emt 0:00:41]} 4. e3 {[%emt 0:00:04]} Be7 {[%emt 0:02:53]} 5. b3 {[%emt 0:00:08]} a5 {[%emt 0:01:04]} 6. Nc3 {[%emt 0:01:02]} Bb4 {[%emt 0:01:25]} 7. Bd2 {[%emt 0:00:16]} Ne4 {[%emt 0:01:17]} 8. Nxe4 {[%emt 0:00:54]} dxe4 {[%emt 0:00:27]} 9. Bxb4 {[%emt 0:01:29]} axb4 {[%emt 0:00:32]} 10. Ne5 {[%emt 0:01:15]} O-O {[%emt 0:01:38]} 11. c5 {[%emt 0:01:18]} f6 {[%emt 0:05:10]} 12. Nc4 {[%emt 0:00:11]} e5 {[%emt 0:00:55]} 13. Nb2 {[%emt 0:06:22]} exd4 {[%emt 0:00:56]} 14. Bc4+ {[%emt 0:00:37]} Kh8 {[%emt 0:00:30]} 15. exd4 {[%emt 0:00:37]} Nc6 {[%emt 0:01:33]} 16. d5 {[%emt 0:00:29]} Ne5 {[%emt 0:00:11]} 17. O-O {[%emt 0:00:52]} Bg4 {[%emt 0:01:05]} 18. Qd2 {[%emt 0:01:02]} f5 {[%emt 0:01:34]} 19. Qf4 {[%emt 0:01:45]} Qf6 {[%emt 0:01:04]} 20. Rfe1 {[%emt 0:02:14]} Rae8 {[%emt 0:03:13]} 21. Be2 {[%emt 0:01:05]} Bxe2 {[%emt 0:00:54]} 22. Rxe2 {[%emt 0:01:05]} Nd3 {[%emt 0:00:36]} 23. Qd2 {[%emt 0:00:17]} Qc3 {[%emt 0:03:24]} 24. Rd1 {[%emt 0:03:10]} Qxd2 {[%emt 0:01:17]} 25. Rexd2 {[%emt 0:00:35]} Nxc5 {[%emt 0:00:33]} 26. Rc1 {[%emt 0:01:17]} b6 {[%emt 0:00:53]} 27. Na4 {[%emt 0:00:31]} Nxa4 {[%emt 0:04:11]} 28. bxa4 {[%emt 0:00:12]} Ra8 {[%emt 0:02:04]} 29. Rxc7 {[%emt 0:00:36]} Rxa4 {[%emt 0:02:39]} 30. g3 {[%emt 0:00:09]} h5 {[%emt 0:00:40]} 31. d6 {[%emt 0:01:02]} b3 {[%emt 0:02:01]} 32. axb3 {[%emt 0:00:28]} Raa8 {[%emt 0:01:39]} 33. d7 {[%emt 0:01:09]} g5 {[%emt 0:01:43]} 34. Rd6 {[%emt 0:04:10]} Rfd8 {[%emt 0:00:59]} 35. Rdc6 {[%emt 0:02:55]} Ra1+ {[%emt 0:01:52]} 36. Kg2 {[%emt 0:00:25]} Rd1 {[%emt 0:00:28]} 37. Rxb6 {[%emt 0:01:07]} R1xd7 {[%emt 0:01:10]} 38. Rxd7 {[%emt 0:01:23]} Rxd7 {[%emt 0:00:04]} 39. b4 {[%emt 0:00:46]} Kg7 {[%emt 0:00:35]} 40. b5 {[%emt 0:00:52]} Rd1 {[%emt 0:00:57]} 41. Rc6 {[%emt 0:00:51]} f4 {[%emt 0:01:17]} 42. gxf4 {[%emt 0:01:15]} gxf4 {[%emt 0:00:09]} 43. Re6 {[%emt 0:00:42]} 1/2-1/2

[Event "DVM U10 2024"]
[Site "Duesseldorf"]
[Date "2024.12.27"]
[Round "3"]
[White "Glaser-Gallion, Ludwig"]
[Black "Ni, Wilhelm Zeyin"]
[Result "0-1"]
[ECO "B72"]
[WhiteElo "1358"]
[BlackElo "1611"]
[Annotator "NA RC"]
[PlyCount "64"]
[EventDate "2024.12.23"]
[EventType "team-tourn"]
[EventRounds "7"]
[EventCountry "GER"]
[SourceTitle "playchess.com"]
[Source "ChessBase"]
[SourceQuality "1"]
[TimeControl "3300+5"]

1. e4 {[%emt 0:00:03]} c5 {[%emt 0:00:06]} 2. Nf3 {[%emt 0:00:06]} d6 {[%emt 0:00:04]} 3. d4 {[%emt 0:00:04]} cxd4 {[%emt 0:00:04]} 4. Nxd4 {[%emt 0:00:08]} Nf6 {[%emt 0:00:05]} 5. Nc3 {[%emt 0:00:08]} g6 {[%emt 0:00:06]} 6. Be3 {[%emt 0:00:27]} Bg7 {[%emt 0:00:06]} 7. Bc4 {[%emt 0:00:08]} O-O {[%emt 0:00:19]} 8. O-O {[%emt 0:00:06]} Nc6 {[%emt 0:00:10]} 9. h3 {[%emt 0:01:13]} Na5 {[%emt 0:01:16]} 10. Bb3 {[%emt 0:01:38]} Nxb3 {[%emt 0:00:13]} 11. axb3 {[%emt 0:00:12]} b6 {[%emt 0:00:48]} 12. f3 {[%emt 0:01:34]} Bb7 {[%emt 0:00:14]} 13. Re1 {[%emt 0:01:54]} e6 {[%emt 0:02:05]} 14. Ndb5 {[%emt 0:00:57]} d5 {[%emt 0:01:09]} 15. e5 {[%emt 0:01:00]} Nd7 {[%emt 0:00:42]} 16. f4 {[%emt 0:00:21]} f6 {[%emt 0:01:37]} 17. Nd4 {[%emt 0:02:39]} Qe7 {[%emt 0:02:03]} 18. exf6 {[%emt 0:01:49]} Nxf6 {[%emt 0:00:23]} 19. Bf2 {[%emt 0:01:06]} Ne4 {[%emt 0:07:10]} 20. Nxe4 {[%emt 0:02:39]} dxe4 {[%emt 0:00:15]} 21. g3 {[%emt 0:00:48]} Rfd8 {[%emt 0:03:22]} 22. c3 {[%emt 0:01:28]} e5 {[%emt 0:02:27]} 23. fxe5 {[%emt 0:00:40]} Bxe5 {[%emt 0:01:00]} 24. Qc2 {[%emt 0:01:05]} a6 {[%emt 0:02:02]} 25. Ne2 {[%emt 0:01:23]} b5 {[%emt 0:09:17]} 26. Bb6 {[%emt 0:01:53]} Rd3 {[%emt 0:01:32]} 27. Rad1 {[%emt 0:03:46]} Qd6 {[%emt 0:01:20]} 28. Bf2 {[%emt 0:01:14]} Qc6 {[%emt 0:01:22]} 29. Nd4 {[%emt 0:05:20]} Bxd4 {[%emt 0:00:29]} 30. Bxd4 {[%emt 0:00:48]} Rxg3+ {[%emt 0:00:13]} 31. Kf2 {[%emt 0:00:42]} Rf3+ {[%emt 0:00:36]} 32. Kg2 {[%emt 0:00:51]} e3 {[%emt 0:01:05]} 0-1

[Event "DVM U10 2024"]
[Site "Duesseldorf"]
[Date "2024.12.27"]
[Round "3"]
[White "Estrin, Boris"]
[Black "Hornych, Fridtjof"]
[Result "0-1"]
[ECO "B12"]
[WhiteElo "1338"]
[BlackElo "1053"]
[Annotator "NA RC"]
[PlyCount "106"]
[EventDate "2024.12.23"]
[EventType "team-tourn"]
[EventRounds "7"]
[EventCountry "GER"]
[SourceTitle "playchess.com"]
[Source "ChessBase"]
[SourceQuality "1"]
[TimeControl "3300+5"]

1. e4 {[%emt 0:00:02]} c6 {[%emt 0:00:07]} 2. d4 {[%emt 0:00:05]} d5 {[%emt 0:00:08]} 3. e5 {[%emt 0:00:03]} Bf5 {[%emt 0:00:07]} 4. Bd3 {[%emt 0:00:04]} Bxd3 {[%emt 0:00:30]} 5. Qxd3 {[%emt 0:00:07]} e6 {[%emt 0:00:15]} 6. Nf3 {[%emt 0:00:03]} c5 {[%emt 0:00:33]} 7. c3 {[%emt 0:00:04]} Nc6 {[%emt 0:00:20]} 8. O-O {[%emt 0:00:10]} Be7 {[%emt 0:00:56]} 9. Be3 {[%emt 0:00:16]} c4 {[%emt 0:00:28]} 10. Qc2 {[%emt 0:00:08]} Qb6 {[%emt 0:00:22]} 11. Nbd2 {[%emt 0:00:11]} Rc8 {[%emt 0:00:46]} 12. b3 {[%emt 0:00:24]} cxb3 {[%emt 0:00:45]} 13. Nxb3 {[%emt 0:01:11]} Nb4 {[%emt 0:00:54]} 14. Qd2 {[%emt 0:00:26]} Nc6 {[%emt 0:00:19]} 15. Rab1 {[%emt 0:00:14]} Qc7 {[%emt 0:00:32]} 16. Rfc1 {[%emt 0:00:16]} f6 {[%emt 0:00:40]} 17. c4 {[%emt 0:00:20]} Qd7 {[%emt 0:02:09]} 18. Na5 {[%emt 0:00:31]} Nxa5 {[%emt 0:01:27]} 19. Qxa5 {[%emt 0:00:31]} b6 {[%emt 0:00:28]} 20. Qd2 {[%emt 0:00:06]} dxc4 {[%emt 0:00:28]} 21. Qe2 {[%emt 0:00:38]} b5 {[%emt 0:01:14]} 22. h3 {[%emt 0:02:40]} a6 {[%emt 0:00:55]} 23. Kh1 {[%emt 0:00:28]} Qd5 {[%emt 0:01:06]} 24. Bd2 {[%emt 0:01:54]} Nh6 {[%emt 0:01:08]} 25. Bxh6 {[%emt 0:01:15]} gxh6 {[%emt 0:00:20]} 26. Qe3 {[%emt 0:00:41]} h5 {[%emt 0:02:26]} 27. Qh6 {[%emt 0:01:17]} Kd7 {[%emt 0:02:49]} 28. exf6 {[%emt 0:00:28]} Ba3 {[%emt 0:01:07]} 29. Qg7+ {[%emt 0:01:10]} Kc6 {[%emt 0:02:31]} 30. Ne5+ {[%emt 0:00:00]} Kb6 {[%emt 0:00:31]} 31. Nd7+ {[%emt 0:00:40]} Kc6 {[%emt 0:00:48]} 32. Ne5+ {[%emt 0:00:51]} Kb6 {[%emt 0:01:11]} 33. Rg1 {[%emt 0:00:41]} c3 {[%emt 0:00:47]} 34. Nd7+ {[%emt 0:00:20]} Kc6 {[%emt 0:00:45]} 35. Nc5 {[%emt 0:00:00]} Bxc5 {[%emt 0:01:37]} 36. dxc5 {[%emt 0:00:11]} Qxc5 {[%emt 0:03:21]} 37. Rbc1 {[%emt 0:00:41]} b4 {[%emt 0:03:48]} 38. Rgd1 {[%emt 0:01:45]} Kb6 {[%emt 0:01:00]} 39. Rc2 {[%emt 0:02:06]} Rcg8 {[%emt 0:01:46]} 40. Qd7 {[%emt 0:00:43]} Rd8 {[%emt 0:01:48]} 41. Qxe6+ {[%emt 0:00:24]} Qc6 {[%emt 0:00:21]} 42. Qxc6+ {[%emt 0:00:27]} Kxc6 {[%emt 0:00:42]} 43. Rb1 a5 {[%emt 0:00:04]} 44. a3 {[%emt 0:01:02]} Kc5 {[%emt 0:00:36]} 45. Kg1 {[%emt 0:01:25]} Rhf8 {[%emt 0:00:25]} 46. Kf1 {[%emt 0:01:05]} Rxf6 {[%emt 0:00:08]} 47. Ke2 {[%emt 0:00:13]} Re6+ {[%emt 0:00:15]} 48. Kf3 {[%emt 0:00:35]} Rd3+ {[%emt 0:00:47]} 49. Kf4 {[%emt 0:00:22]} Red6 {[%emt 0:00:27]} 50. Rb3 {[%emt 0:00:52]} Kc4 {[%emt 0:00:33]} 51. Rb1 {[%emt 0:00:42]} Rd2 {[%emt 0:00:12]} 52. Rcc1 {[%emt 0:00:38]} b3 {[%emt 0:00:18]} 53. Kg5 {[%emt 0:00:33]} c2 {[%emt 0:00:23]} 0-1

[Event "DVM U10 2024"]
[Site "Duesseldorf"]
[Date "2024.12.27"]
[Round "3"]
[White "Klaus, Simon"]
[Black "Vignesh Bama, Dev"]
[Result "1-0"]
[ECO "C45"]
[WhiteElo "1197"]
[BlackElo "1633"]
[Annotator "NA RC"]
[PlyCount "113"]
[EventDate "2024.12.23"]
[EventType "team-tourn"]
[EventRounds "7"]
[EventCountry "GER"]
[SourceTitle "playchess.com"]
[Source "ChessBase"]
[SourceQuality "1"]
[TimeControl "3300+5"]

1. e4 {[%emt 0:00:03]} e5 {[%emt 0:00:04]} 2. Nf3 {[%emt 0:00:09]} Nc6 {[%emt 0:00:03]} 3. d4 {[%emt 0:00:11]} exd4 {[%emt 0:00:06]} 4. Nxd4 {[%emt 0:00:11]} Bc5 {[%emt 0:00:11]} 5. Be3 {[%emt 0:00:14]} Qf6 {[%emt 0:00:07]} 6. c3 {[%emt 0:00:13]} Nge7 {[%emt 0:01:09]} 7. Bb5 {[%emt 0:00:28]} a6 {[%emt 0:00:18]} 8. Bxc6 {[%emt 0:00:36]} Nxc6 {[%emt 0:00:12]} 9. O-O {[%emt 0:00:21]} O-O {[%emt 0:00:29]} 10. Nxc6 {[%emt 0:00:32]} Qxc6 {[%emt 0:00:15]} 11. Bxc5 {[%emt 0:00:32]} Qxc5 {[%emt 0:00:11]} 12. Qd4 {[%emt 0:00:13]} Qg5 {[%emt 0:00:20]} 13. Qd3 {[%emt 0:01:41]} d6 {[%emt 0:00:18]} 14. Re1 {[%emt 0:01:33]} Re8 {[%emt 0:00:35]} 15. Nd2 {[%emt 0:00:17]} f5 {[%emt 0:00:25]} 16. Nf3 {[%emt 0:00:29]} Qg6 {[%emt 0:00:21]} 17. exf5 {[%emt 0:00:53]} Bxf5 {[%emt 0:00:08]} 18. Qc4+ {[%emt 0:01:29]} Qf7 {[%emt 0:00:32]} 19. Qxf7+ {[%emt 0:01:32]} Kxf7 {[%emt 0:00:13]} 20. Rxe8 {[%emt 0:00:22]} Rxe8 {[%emt 0:00:10]} 21. Re1 {[%emt 0:00:13]} Rxe1+ {[%emt 0:00:24]} 22. Nxe1 {[%emt 0:00:11]} Ke6 {[%emt 0:00:15]} 23. Kf1 {[%emt 0:01:15]} Kd5 {[%emt 0:00:04]} 24. Ke2 {[%emt 0:00:25]} Kc4 {[%emt 0:00:27]} 25. Kd2 {[%emt 0:00:55]} Bb1 {[%emt 0:00:09]} 26. a3 {[%emt 0:00:27]} Kb3 {[%emt 0:00:25]} 27. Kc1 {[%emt 0:00:26]} Be4 {[%emt 0:00:14]} 28. h4 {[%emt 0:00:54]} d5 {[%emt 0:00:27]} 29. g4 {[%emt 0:00:38]} c5 {[%emt 0:00:25]} 30. h5 {[%emt 0:00:15]} h6 {[%emt 0:00:06]} 31. f3 {[%emt 0:00:28]} Bf5 {[%emt 0:01:12]} 32. gxf5 {[%emt 0:01:18]} d4 {[%emt 0:00:05]} 33. cxd4 {[%emt 0:00:40]} cxd4 {[%emt 0:00:06]} 34. Nd3 {[%emt 0:00:48]} Kc4 {[%emt 0:00:41]} 35. Kc2 {[%emt 0:01:09]} b5 {[%emt 0:00:16]} 36. b3+ {[%emt 0:00:34]} Kd5 {[%emt 0:00:08]} 37. Nb4+ {[%emt 0:00:43]} Ke5 {[%emt 0:00:17]} 38. Nxa6 {[%emt 0:01:39]} Kxf5 {[%emt 0:00:06]} 39. Nc7 {[%emt 0:00:39]} b4 {[%emt 0:00:30]} 40. a4 {[%emt 0:00:59]} Ke5 {[%emt 0:00:40]} 41. a5 {[%emt 0:00:58]} Kd6 {[%emt 0:00:06]} 42. Nb5+ {[%emt 0:00:40]} Kc5 {[%emt 0:00:17]} 43. Nxd4 {[%emt 0:03:33]} Kd6 {[%emt 0:00:18]} 44. a6 {[%emt 0:00:26]} Kc7 {[%emt 0:00:07]} 45. Ne6+ {[%emt 0:00:21]} Kb6 {[%emt 0:00:15]} 46. Nxg7 {[%emt 0:00:17]} Kxa6 {[%emt 0:00:09]} 47. f4 {[%emt 0:00:32]} Kb6 {[%emt 0:00:05]} 48. f5 {[%emt 0:00:12]} Kc6 {[%emt 0:00:04]} 49. f6 {[%emt 0:00:18]} Kd7 {[%emt 0:00:19]} 50. Kd3 {[%emt 0:00:05]} Kd6 {[%emt 0:00:10]} 51. Kd4 {[%emt 0:00:35]} Kd7 {[%emt 0:00:10]} 52. Kd5 {[%emt 0:00:17]} Kd8 {[%emt 0:00:12]} 53. Kc6 {[%emt 0:00:44]} Kc8 {[%emt 0:00:11]} 54. f7 {[%emt 0:00:14]} Kb8 {[%emt 0:00:07]} 55. f8=Q+ {[%emt 0:00:47]} Ka7 {[%emt 0:00:08]} 56. Qe7+ {[%emt 0:00:28]} Ka6 {[%emt 0:00:13]} 57. Qb7+ {[%emt 0:00:16]} 1-0